[Event "34th Pula Open 2022"]
[Site "Pula"]
[Date "2022.06.23"]
[Round "7.4"]
[White "Lim, Zhuo Ren"]
[Black "Zufic, Miroslav"]
[Result "1/2-1/2"]
[ECO "E11"]
[WhiteElo "2290"]
[BlackElo "2384"]
[Annotator "TA"]
[PlyCount "49"]
[EventDate "2022.06.18"]
[EventType "swiss"]
[EventCountry "CRO"]
[SourceTitle "playchess.com"]
[Source "ChessBase"]
[SourceQuality "1"]
[TimeControl "5400+30"]

{[%evp 10,49,18,18,34,28,42,2,14,8,65,41,58,62,47,25,25,0,63,46,55,54,56,39,47,49,44,10,9,9,9,10,22,10,26,8,6,9,12,0,12,12]} 1. d4 {[%emt 0:00:03]} Nf6 {[%emt 0:00:08]} 2. c4 {[%emt 0:00:05]} e6 {[%emt 0:00:14]} 3. Nf3 {[%emt 0:00:10]} Bb4+ {[%emt 0:02:51]} 4. Nbd2 {[%emt 0:00:11]} O-O {[%emt 0:01:29]} 5. a3 {[%emt 0:00:11]} Be7 {[%emt 0:00:16]} 6. e4 {[%emt 0:00:23]} d6 {[%emt 0:00:46][%cal Oe6e5] E11: Bogo-Indian.} 7. Be2 {[%emt 0:02:29]} Nfd7 {[%emt 0:01:11]} 8. O-O {[%emt 0:00:52]} e5 {[%emt 0:02:10]} 9. Nb1 {[%emt 0:00:53]} a5 {[%emt 0:05:11]} (9... exd4 $11 10. Nxd4 Nc6) 10. Nc3 {[%emt 0:00:57] White is more active.} exd4 {[%emt 0:01:53]} 11. Nxd4 {[%emt 0:00:04]} Nc5 {[%emt 0:00:24]} 12. b3 {[%emt 0:01:13]} Bf6 {[%emt 0:05:04]} 13. Be3 {[%emt 0:01:13]} Re8 {[%emt 0:07:21]} (13... Nc6 $11 14. Ndb5 Na7) 14. Qc2 $14 {[%emt 0:04:42]} Nc6 {[%emt 0:16:31]} 15. Ndb5 {[%emt 0:06:21] [#]} Na7 $146 {[%emt 0:12:18]} ({Predecessor:} 15... b6 16. Rab1 Bb7 17. f3 Bxc3 18. Nxc3 f5 19. b4 axb4 20. axb4 Ne6 21. Rfd1 fxe4 {0-1 (71) Klaasen,C (2285)-El Gindy,E (2423) Hammamet 2019}) 16. Nxa7 {[%emt 0:12:38]} Rxa7 {[%emt 0:00:02]} 17. Rad1 {[%emt 0:00:42]} b6 {[%emt 0:01:30]} 18. b4 {[%emt 0:08:49]} axb4 {[%emt 0:00:09]} 19. axb4 {[%emt 0:00:02] [#] aiming for Nb5.} Bxc3 {[%emt 0:08:47]} 20. bxc5 {[%emt 0:00:22]} Bb4 $1 {[%emt 0:00:10]} 21. cxb6 {[%emt 0:00:48]} cxb6 {[%emt 0:00:02]} 22. Qb2 {[%emt 0:01:02]} Bc5 {[%emt 0:01:13] The position is equal.} 23. Bxc5 {[%emt 0:03:29]} bxc5 {[%emt 0:03:42]} 24. e5 {[%emt 0:00:22]} Ra6 {[%emt 0:00:49]} 25. Bf3 {[%emt 0:04:08] Weighted Error Value: White=0.12 (very precise) /Black=0.14 (very precise)} 1/2-1/2

[Event "34th Pula Open 2022"]
[Site "Pula"]
[Date "2022.06.23"]
[Round "7.5"]
[White "Lindgren, Philip"]
[Black "Seres, Bela"]
[Result "1-0"]
[ECO "D60"]
[WhiteElo "2369"]
[BlackElo "2164"]
[Annotator "TA"]
[PlyCount "97"]
[EventDate "2022.06.18"]
[EventType "swiss"]
[EventCountry "CRO"]
[SourceTitle "playchess.com"]
[Source "ChessBase"]
[SourceQuality "1"]
[TimeControl "5400+30"]

{[%evp 17,97,18,33,23,38,17,30,14,18,12,50,50,34,40,39,35,49,44,44,43,42,36,74,65,64,71,56,43,99,106,104,62,62,62,96,70,101,97,107,100,112,119,251,157,339,339,305,325,336,312,297,293,379,368,379,375,375,350,386,228,234,239,258,233,380,368,436,344,356,232,220,224,300,294,485,460,553,536,795,784,741,734]} 1. Nf3 {[%emt 0:01:14]} Nf6 {[%emt 0:00:10]} 2. d4 {[%emt 0:01:04]} e6 {[%emt 0:00:30]} 3. Bg5 {[%emt 0:02:09]} d5 {[%emt 0:03:07]} 4. c4 {[%emt 0:05:41]} Be7 {[%emt 0:02:19]} 5. Nc3 {[%emt 0:00:59]} Nbd7 {[%emt 0:02:54]} 6. e3 {[%emt 0:01:04]} h6 {[%emt 0:01:41]} 7. Bh4 {[%emt 0:00:30]} c6 {[%emt 0:09:34]} 8. Bd3 {[%emt 0:03:24]} O-O {[%emt 0:01:16]} 9. O-O {[%emt 0:02:47]} b6 {[%emt 0:01:06]} 10. Qe2 {[%emt 0:10:20] 10.cxd5 is the modern continuation. D60: Queen's Gambit Declined: Classical: Unusual White 7th moves.} Bb7 {[%emt 0:05:11]} 11. Rfd1 {[%emt 0:00:00]} Rc8 {[%emt 0:10:07]} 12. Rac1 {[%emt 0:31:32] White has an edge.} Ne4 {[%emt 0:09:49] [#] And now ...Nxc3 would win.} 13. Bg3 $146 {[%emt 0:00:30]} (13. Nxe4 $2 dxe4 14. Bxe4 (14. Bxe7 $2 exd3 15. Qxd3 Qxe7 $19) 14... Bxh4 $19) ({Predecessor:} 13. Bxe7 Nxc3 14. Rxc3 Qxe7 15. Rdc1 f5 16. a3 g5 17. cxd5 exd5 18. Ba6 Bxa6 19. Qxa6 g4 20. Ne1 Nb8 {½-½ (20) Mann,K (2112)-Habermann,A (2054) Plau am See 2003}) 13... f5 {[%emt 0:21:54]} 14. cxd5 {[%emt 0:00:00]} exd5 {[%emt 0:01:27]} 15. Ba6 {[%emt 0:00:00]} Nxg3 {[%emt 0:00:54]} 16. hxg3 {[%emt 0:00:00]} Bxa6 {[%emt 0:00:22]} 17. Qxa6 {[%emt 0:00:00]} Rc7 {[%emt 0:00:21]} 18. Rc2 {[%emt 0:00:00]} Bd6 {[%emt 0:02:58]} 19. Rdc1 {[%emt 0:00:00]} Nb8 {[%emt 0:01:34]} 20. Qd3 {[%emt 0:00:00]} Qe7 {[%emt 0:04:14]} 21. b4 {[%emt 0:03:28]} b5 {[%emt 0:03:06]} 22. a3 {[%emt 0:02:08][%cal Of3e5]} Rd7 {[%emt 0:00:55]} ({Black should try} 22... a6 $14) 23. Ne2 $16 {[%emt 0:01:49]} g5 {[%emt 0:00:58]} 24. Qb3 {[%emt 0:03:08]} Qe6 {[%emt 0:01:18]} 25. Ne1 {[%emt 0:11:36]} h5 {[%emt 0:02:03]} 26. Nd3 {[%emt 0:01:51]} Rh7 {[%emt 0:01:36]} 27. Rxc6 {[%emt 0:03:59]} Nxc6 {[%emt 0:00:11]} 28. Rxc6 {[%emt 0:00:01] aiming for Nc5.} Rd8 {[%emt 0:01:34] [#]} 29. Nc3 $1 {[%emt 0:10:46][%csl LRb5,LRd5]} Qf7 {[%emt 0:02:23]} (29... h4 $16 {was worth a try.}) 30. Qxd5 {[%emt 0:00:49]} (30. Nxd5 Kh8 $11) 30... Rh6 {[%emt 0:03:31] This move loses the game for Black.} (30... Qxd5 $16 31. Nxd5 Rf7) 31. Qxf7+ $18 {[%emt 0:00:51]} (31. Qxb5 Kh7 32. e4 Bb8 $18) 31... Kxf7 {[%emt 0:00:01]} 32. Nxb5 {[%emt 0:00:10]} h4 {[%emt 0:00:18]} 33. Ne5+ {[%emt 0:00:42]} ({Much less strong is} 33. Nxd6+ Rdxd6 34. Rc7+ Ke8 35. gxh4 (35. Rxa7 hxg3 36. Ra8+ Ke7 $16) 35... gxh4 $18) (33. Nxa7 hxg3 34. Nb5 Ke7 $16) 33... Kg7 {[%emt 0:00:06]} 34. Nxd6 {[%emt 0:00:43]} Rhxd6 {[%emt 0:01:28][%mdl 4096] Endgame KRR-KRN} 35. Rc7+ {[%emt 0:00:07]} Kf6 {[%emt 0:00:00]} 36. gxh4 {[%emt 0:00:23]} gxh4 {[%emt 0:00:15]} 37. Rxa7 {[%emt 0:00:28]} Rc8 {[%emt 0:00:10]} 38. Rf7+ {[%emt 0:03:01]} (38. b5 $142) 38... Ke6 {[%emt 0:00:06]} 39. Rh7 {[%emt 0:00:27]} Rc1+ {[%emt 0:01:52]} 40. Kh2 {[%emt 0:00:02]} Kd5 {[%emt 0:00:35]} (40... Rc2 $142 41. Nd3 (41. Rxh4 Rxf2 42. Kg3 Rf1 $18) 41... Ra2 42. Rxh4 Rxa3) 41. Rxh4 {[%emt 0:00:46]} Ra1 {[%emt 0:00:39]} 42. g3 {[%emt 0:02:02]} Rxa3 {[%emt 0:00:24]} 43. Rf4 {[%emt 0:00:24]} Rh6+ {[%emt 0:01:28]} 44. Kg2 {[%emt 0:00:05]} Rh5 {[%emt 0:00:10]} 45. Nd7 {[%emt 0:00:41] Threatens to win with Nf6+.} Ke6 {[%emt 0:01:16] Prevents Nf6.} (45... Rg5 {keeps fighting.} 46. Rh4 Rg7) 46. Nc5+ {[%emt 0:00:10] White is clearly winning.} Kd5 {[%emt 0:00:10]} 47. b5 {[%emt 0:00:48][%cal Bb4b5,Bb5b6,Bb6b7][%mdl 32]} Ra1 {[%emt 0:03:13]} 48. b6 {[%emt 0:00:05]} Rb1 {[%emt 0:00:45]} 49. b7 {[%emt 0:01:27] Weighted Error Value: White=0.15 (very precise) /Black=0.38} 1-0

[Event "34th Pula Open 2022"]
[Site "Pula"]
[Date "2022.06.23"]
[Round "7.6"]
[White "Gelle, Istvan"]
[Black "Pastar, Slaven"]
[Result "0-1"]
[ECO "D02"]
[WhiteElo "2250"]
[BlackElo "2300"]
[Annotator "TA"]
[PlyCount "80"]
[EventDate "2022.06.18"]
[EventType "swiss"]
[EventCountry "CRO"]
[SourceTitle "playchess.com"]
[Source "ChessBase"]
[SourceQuality "1"]
[TimeControl "5400+30"]

{[%evp 17,80,-7,-1,0,0,-39,-17,-29,-25,-21,-37,-24,-22,-25,-22,-25,-13,-1,0,-10,-15,-14,-16,-61,-68,-62,-20,-35,-36,-57,-64,-52,-53,-51,-55,-99,-91,-106,-120,-118,-97,-112,-48,-28,-39,-56,-10,-147,-8,-252,-253,-254,-242,-202,-206,-822,-6,-5181,-2999,-2773,-2632,-29984,-29985,-29983,-29984]} 1. d4 {[%emt 0:00:03]} Nf6 {[%emt 0:00:24]} 2. Bf4 {[%emt 0:00:10]} e6 {[%emt 0:00:16]} 3. e3 {[%emt 0:00:19]} c5 {[%emt 0:00:28]} 4. c3 {[%emt 0:00:13]} Nc6 {[%emt 0:00:59]} 5. Nd2 {[%emt 0:00:47]} d5 {[%emt 0:00:20]} 6. Ngf3 {[%emt 0:00:23]} Bd6 {[%emt 0:00:30]} 7. Bg3 {[%emt 0:00:17]} O-O {[%emt 0:00:42]} 8. Bd3 {[%emt 0:00:13]} b6 {[%emt 0:00:45]} 9. Ne5 {[%emt 0:01:27] 9.Qe2 is the hot move.} Bb7 {[%emt 0:00:37]} 10. O-O {[%emt 0:00:56] D02: 1 d4 d5 2 Nf3 sidelines, including 2...Nf6 3 g3 and 2...Nf6 3 Bf4.} Qc7 {[%emt 0:01:27][%cal Rc6e5]} 11. Ndf3 {[%emt 0:03:56]} Ne7 {[%emt 0:06:28] [#]} (11... Ne4 $5 {[%cal Re4g3]}) 12. Qb1 $146 {[%emt 0:09:45] The position is equal.} ({Predecessor:} 12. b4 c4 13. Bc2 Ne4 14. Bxe4 dxe4 15. Nd2 b5 16. Qh5 a5 17. bxa5 f6 18. Ng4 Bxg3 19. fxg3 Rxa5 {½-½ (41) Aloma Vidal,R (2443)-Masague Artero,G (2362) Barcelona 2020}) 12... Ne4 {[%emt 0:19:09]} 13. Bxe4 {[%emt 0:09:09]} dxe4 {[%emt 0:00:11]} 14. Nd2 {[%emt 0:00:21]} f6 {[%emt 0:10:37]} 15. Nec4 {[%emt 0:00:23] Pair of Knights!} Bxg3 {[%emt 0:00:19]} 16. hxg3 {[%emt 0:00:08]} Ng6 {[%emt 0:19:40]} 17. b4 {[%emt 0:07:24]} f5 {[%emt 0:02:07]} 18. Rc1 {[%emt 0:09:24]} Bd5 {[%emt 0:02:26][%cal Of5f4]} 19. a4 {[%emt 0:03:02]} h5 {[%emt 0:00:57]} 20. bxc5 {[%emt 0:03:29]} bxc5 {[%emt 0:00:11]} 21. Qb5 {[%emt 0:00:31]} Rab8 {[%emt 0:04:01]} 22. Qa5 {[%emt 0:05:59]} Qe7 {[%emt 0:03:34]} 23. Rab1 {[%emt 0:05:26]} Rbc8 {[%emt 0:00:56]} 24. Ne5 {[%emt 0:03:45]} Nxe5 {[%emt 0:00:53]} 25. dxe5 {[%emt 0:00:05]} c4 {[%emt 0:01:16]} 26. Rb4 {[%emt 0:05:33]} g5 {[%emt 0:02:27][%cal Bg7g5,Bg5h4,Bh4h3][%mdl 32]} 27. Rcb1 {[%emt 0:05:30] [#]} h4 $1 {[%emt 0:00:44]} 28. Nf1 {[%emt 0:02:05]} Qg7 {[%emt 0:00:57]} 29. Rb5 {[%emt 0:04:20] [#]} Qxe5 {[%emt 0:02:08]} ({Black should play} 29... Rcd8 $1 $17) 30. gxh4 $15 {[%emt 0:01:49]} gxh4 {[%emt 0:01:24]} 31. Rb7 {[%emt 0:03:34] Inhibits Qg7.} f4 {[%emt 0:02:47]} (31... Qf6 $15 32. Rxa7 Ra8) 32. Rxa7 {[%emt 0:01:30]} (32. Rd7 $1 $11) 32... Rf5 {[%emt 0:04:34]} ({Better is} 32... Qf6 $17 33. exf4 Qxf4) 33. Qb6 {[%emt 0:08:25]} (33. Qb4 $11 Rcf8 34. Kh1 (34. Qe7 R5f7 $15)) 33... h3 $19 {[%emt 0:01:47] Threatens to win with ...Rg5.} 34. exf4 {[%emt 0:02:06]} Qxf4 {[%emt 0:00:26]} 35. Qe3 {[%emt 0:01:41]} ({Don't blunder} 35. Qd4 $2 Rg5 36. Ng3 Rxg3 37. fxg3 Qxg3 38. Rg7+ (38. Qd2 $2 Rf8 $19) 38... Qxg7 $19) 35... hxg2 {[%emt 0:00:53] Really sharp!} 36. Kxg2 {[%emt 0:00:41]} (36. Ng3 Qh4 37. Qd4) 36... Rcf8 $2 {[%emt 0:01:41]} (36... Qg4+ $19 37. Qg3 e3+ 38. f3 Bxf3+ 39. Kg1 Rg5 40. Qxg4 Rxg4+ 41. Kh2 Rg2+ 42. Kh3 Rg1 43. Nxe3 Rxb1) 37. Rb2 $2 {[%emt 0:01:19][%mdl 8192]} (37. Qxf4 $11 Rxf4 38. Ne3) 37... Qh4 {[%emt 0:05:08]} 38. Kg1 {[%emt 0:02:14]} Rf3 {[%emt 0:01:13]} 39. Qd4 {[%emt 0:00:31]} Qg5+ {[%emt 0:00:30]} 40. Ng3 {[%emt 0:00:50]} e3 {[%emt 0:00:33] Weighted Error Value: White=0.83/Black=0.38} 0-1

[Event "34th Pula Open 2022"]
[Site "Pula"]
[Date "2022.06.23"]
[Round "7.7"]
[White "Cvitan, Ena"]
[Black "Cupic, Lovro"]
[Result "1/2-1/2"]
[ECO "D35"]
[WhiteElo "2251"]
[BlackElo "2271"]
[Annotator "TA"]
[PlyCount "39"]
[EventDate "2022.06.18"]
[EventType "swiss"]
[EventCountry "CRO"]
[SourceTitle "playchess.com"]
[Source "ChessBase"]
[SourceQuality "1"]
[TimeControl "5400+30"]

{[%evp 21,22,0,0]} 1. d4 {[%emt 0:02:58]} d5 {[%emt 0:00:04]} 2. Nf3 {[%emt 0:00:06]} Nf6 {[%emt 0:00:03]} 3. Bf4 {[%emt 0:00:06]} Bf5 {[%emt 0:00:05]} 4. e3 {[%emt 0:00:10]} e6 {[%emt 0:00:06]} 5. Bd3 {[%emt 0:00:12]} Bxd3 {[%emt 0:00:06]} 6. Qxd3 {[%emt 0:00:04]} c6 {[%emt 0:00:09]} 7. O-O {[%emt 0:00:06]} Bd6 {[%emt 0:00:05]} 8. Bxd6 {[%emt 0:00:06]} Qxd6 {[%emt 0:00:04]} 9. c4 {[%emt 0:00:06]} O-O {[%emt 0:00:05]} 10. cxd5 {[%emt 0:00:07]} exd5 {[%emt 0:00:05]} 11. Nc3 {[%emt 0:00:04]} Nbd7 {[%emt 0:00:04] [#]} {Predecessor:} 12. Rab1 $146 {D35: Queen's Gambit Declined: Exchange Variation.} Rfe8 13. Qc2 a5 14. a3 g6 15. Rfc1 Rec8 16. h3 Kg7 17. Nd2 h5 18. Na4 Re8 19. b4 axb4 20. axb4 {0-1 (45) Yang,K (2481)-Bluebaum,M (2663) Chess.com INT 2022} 1/2-1/2

[Event "34th Pula Open 2022"]
[Site "Pula"]
[Date "2022.06.23"]
[Round "7.8"]
[White "Ragger, Anna-Christina"]
[Black "Rubil, Marko"]
[Result "1/2-1/2"]
[ECO "C47"]
[WhiteElo "2141"]
[BlackElo "2272"]
[Annotator "TA"]
[PlyCount "44"]
[EventDate "2022.06.18"]
[EventType "swiss"]
[EventCountry "CRO"]
[SourceTitle "playchess.com"]
[Source "ChessBase"]
[SourceQuality "1"]
[TimeControl "5400+30"]

{[%evp 14,44,15,0,12,-16,18,16,14,16,14,17,20,13,8,13,18,12,6,8,20,10,27,25,44,37,37,34,46,39,45,8,22]} 1. e4 {[%emt 0:00:03]} e5 {[%emt 0:02:46]} 2. Nf3 {[%emt 0:00:06]} Nc6 {[%emt 0:00:05]} 3. Nc3 {[%emt 0:00:05]} Nf6 {[%emt 0:00:05]} 4. d4 {[%emt 0:00:05]} exd4 {[%emt 0:00:08]} 5. Nxd4 {[%emt 0:00:05]} Bc5 {[%emt 0:00:12]} 6. Nxc6 {[%emt 0:00:28]} bxc6 {[%emt 0:00:25]} 7. Bd3 {[%emt 0:00:36]} O-O {[%emt 0:09:36]} 8. O-O {[%emt 0:00:39]} Re8 {[%emt 0:02:12] C47: Scotch Four Knights and Four Knights with 4 g3.} 9. h3 {[%emt 0:02:34]} Rb8 {[%emt 0:06:59] [#]} 10. Re1 $146 {[%emt 0:08:13]} ({Predecessor:} 10. Na4 Bf8 11. Re1 d5 12. exd5 cxd5 13. b3 c5 14. Bg5 Rxe1+ 15. Qxe1 h6 16. Bf4 {1-0 (42) Guerra Mendez,J (2531)-Krysa,L (2548) Barcelona 2018}) 10... Bd4 {[%emt 0:08:47]} 11. Na4 {[%emt 0:04:59]} d5 {[%emt 0:19:16][%cal Rd5e4]} 12. c3 {[%emt 0:18:28]} dxe4 {[%emt 0:11:12] [#] And now ...Bxf2+ would win.} 13. cxd4 {[%emt 0:00:39] Threatens to win with Bc2.} exd3 {[%emt 0:00:07]} 14. Rxe8+ {[%emt 0:01:28]} Qxe8 {[%emt 0:00:33]} 15. Qxd3 {[%emt 0:09:43]} ({Much weaker is} 15. Nc5 Bf5 16. Nxd3 Bxd3 17. Qxd3 Nd5) 15... Qe1+ {[%emt 0:04:29]} 16. Qf1 {[%emt 0:00:32]} Qb4 {[%emt 0:01:29]} 17. Qd1 {[%emt 0:01:28]} Be6 {[%emt 0:04:55]} 18. b3 {[%emt 0:04:01]} Ne4 {[%emt 0:04:44]} 19. Bb2 {[%emt 0:07:40]} Bd5 {[%emt 0:00:25]} 20. f3 {[%emt 0:01:53]} Nf6 {[%emt 0:02:25]} 21. Qe1 {[%emt 0:01:36]} Qd6 {[%emt 0:00:52]} 22. Qe5 {[%emt 0:01:30]} Re8 {[%emt 0:10:27] Weighted Error Value: White=0.07 (flawless) /Black=0.08 (flawless)} 1/2-1/2

[Event "34th Pula Open 2022"]
[Site "Pula"]
[Date "2022.06.23"]
[Round "7.9"]
[White "Hadzovic, Amir"]
[Black "Babic, Drasko"]
[Result "1-0"]
[ECO "C29"]
[WhiteElo "2270"]
[BlackElo "2205"]
[Annotator "NA RC"]
[PlyCount "60"]
[EventDate "2022.06.18"]
[EventType "swiss"]
[EventCountry "CRO"]
[SourceTitle "playchess.com"]
[Source "ChessBase"]
[SourceQuality "1"]
[TimeControl "5400+30"]

1. e4 {[%emt 0:00:04]} e5 {[%emt 0:00:05]} 2. Nc3 {[%emt 0:00:30]} Nf6 {[%emt 0:00:30]} 3. f4 {[%emt 0:00:30]} d5 {[%emt 0:00:30]} 4. fxe5 {[%emt 0:00:30]} Nxe4 {[%emt 0:00:30]} 5. Qf3 {[%emt 0:00:30]} Bc5 {[%emt 0:00:30]} 6. Nxe4 {[%emt 0:00:30]} dxe4 {[%emt 0:00:30]} 7. Qxe4 {[%emt 0:00:30]} Bxg1 {[%emt 0:00:32]} 8. Rxg1 {[%emt 0:02:32]} c5 {[%emt 0:01:17]} 9. Bb5+ {[%emt 0:04:09]} Nc6 {[%emt 0:01:14]} 10. b3 {[%emt 0:06:35]} O-O {[%emt 0:02:16]} 11. Bb2 {[%emt 0:05:16]} Ne7 {[%emt 0:12:21]} 12. Rf1 {[%emt 0:04:19]} Qb6 {[%emt 0:00:55]} 13. Bd3 {[%emt 0:00:59]} g6 {[%emt 0:01:02]} 14. g4 {[%emt 0:04:59]} Be6 {[%emt 0:00:16]} 15. Bc4 {[%emt 0:01:37]} Qc6 {[%emt 0:06:21]} 16. Qe2 {[%emt 0:08:04]} a6 {[%emt 0:01:24]} 17. O-O-O {[%emt 0:01:57]} b5 {[%emt 0:00:23]} 18. Bxe6 {[%emt 0:09:40]} fxe6 {[%emt 0:00:30]} 19. Rf6 {[%emt 0:00:30]} Nd5 {[%emt 0:00:30]} 20. Rdf1 {[%emt 0:00:30]} Nxf6 {[%emt 0:02:23]} 21. exf6 {[%emt 0:03:06]} Rad8 {[%emt 0:07:32]} 22. h4 {[%emt 0:03:49]} Kf7 {[%emt 0:00:37]} 23. Qe3 {[%emt 0:01:13]} Qg2 {[%emt 0:02:08]} 24. Rg1 {[%emt 0:01:09]} Qh2 {[%emt 0:00:15]} 25. Be5 {[%emt 0:01:34]} Qxh4 {[%emt 0:00:30]} 26. Qxc5 {[%emt 0:00:30]} Rd7 {[%emt 0:04:26]} 27. Qc6 {[%emt 0:00:00]} Rfd8 {[%emt 0:00:27]} 28. Rh1 {[%emt 0:01:41]} Qf2 {[%emt 0:01:17]} 29. Rxh7+ {[%emt 0:00:20]} Kg8 {[%emt 0:01:25]} 30. f7+ {[%emt 0:00:42]} Kf8 {[%emt 0:00:15]} 1-0

[Event "34th Pula Open 2022"]
[Site "Pula"]
[Date "2022.06.23"]
[Round "7.10"]
[White "Bochnicka, Vladimir"]
[Black "Dahl, Trygve"]
[Result "1-0"]
[ECO "A26"]
[WhiteElo "2267"]
[BlackElo "2237"]
[Annotator "TA"]
[PlyCount "77"]
[EventDate "2022.06.18"]
[EventType "swiss"]
[EventCountry "CRO"]
[SourceTitle "playchess.com"]
[Source "ChessBase"]
[SourceQuality "1"]
[TimeControl "5400+30"]

{[%evp 18,77,-11,-13,-12,-6,8,-1,0,0,80,3,8,0,44,0,43,10,71,24,75,18,66,-19,-21,-67,-29,-36,0,-100,-91,-93,-102,-257,-235,-218,-220,-213,-219,-690,-671,-457,-556,-761,-705,-653,-700,-688,-686,-848,-640,-2122,-1895,-1683,-703,-703,-620,-610,-618,-608,1006,1006]} 1. c4 {[%emt 0:00:04]} e5 {[%emt 0:01:52]} 2. Nc3 {[%emt 0:00:14]} Nc6 {[%emt 0:00:06]} 3. g3 {[%emt 0:00:19]} g6 {[%emt 0:00:23]} 4. Bg2 {[%emt 0:00:24]} Bg7 {[%emt 0:00:07]} 5. e4 {[%emt 0:00:44]} d6 {[%emt 0:01:30]} 6. Nge2 {[%emt 0:00:45]} f5 {[%emt 0:00:46]} 7. d3 {[%emt 0:01:15]} Nf6 {[%emt 0:00:11]} 8. O-O {[%emt 0:01:28]} O-O {[%emt 0:00:15]} 9. exf5 {[%emt 0:03:57]} Bxf5 {[%emt 0:00:38]} 10. h3 {[%emt 0:00:23]} Qd7 {[%emt 0:01:34] A26: English Opening vs King's Indian with ...Nc6 and d3.} 11. Kh2 {[%emt 0:00:45]} Kh8 {[%emt 0:35:59]} (11... Nb4 $5 {[%cal Rb4d3]}) 12. Be3 {[%emt 0:05:18]} Be6 {[%emt 0:03:51] [#] The position is equal.} 13. f4 $146 {[%emt 0:06:45]} ({Predecessor:} 13. Qd2 d5 14. cxd5 Nxd5 15. Ne4 b6 16. Bg5 a5 17. Rac1 a4 18. N4c3 Ra5 19. a3 {1-0 (59) Balashov,Y (2550)-Rashkovsky,N (2530) Kuopio 1992}) 13... Nd4 {[%emt 0:04:22]} (13... Bg8 $11 {keeps the balance.}) 14. Qd2 {[%emt 0:11:07]} (14. Nxd4 exd4 15. Bxd4 Ng4+ 16. hxg4 Bxd4 $14) (14. Bxb7 $2 Bxh3 15. Bxd4 exd4 16. Bxa8 Bxf1 17. Qxf1 Ng4+ 18. Kg1 dxc3 $19) (14. Bxd4 $16 {Threatens to win with Be3.} exd4 15. Nxd4) 14... c5 $11 {[%emt 0:04:36]} 15. Rab1 {[%emt 0:05:41]} a5 {[%emt 0:04:01]} 16. b3 {[%emt 0:02:30]} Rae8 {[%emt 0:05:37]} 17. Rbe1 {[%emt 0:20:56]} Re7 {[%emt 0:03:54]} (17... Nh5 $11) 18. Bg1 {[%emt 0:13:01]} (18. fxe5 $16 dxe5 19. Bg5) 18... Ref7 {[%emt 0:00:53]} (18... b6 $11) 19. Nxd4 {[%emt 0:01:07]} (19. fxe5 $16 dxe5 20. Na4) 19... cxd4 {[%emt 0:01:33]} (19... exd4 $11 {was preferrable.} 20. Na4 Bf5) 20. Ne2 {[%emt 0:07:47]} (20. Nb5 $14) 20... b6 {[%emt 0:03:52]} 21. b4 {[%emt 0:01:15]} (21. g4 $11 {deserves consideration.}) 21... a4 {[%emt 0:01:44]} 22. Qc2 {[%emt 0:02:08]} Nh5 {[%emt 0:00:27][%cal Re5f4]} (22... b5 {keeps more tension.} 23. cxb5 Bd5 24. Bxd5 Nxd5 25. Qc6 Qxc6 26. bxc6 Nxb4 27. fxe5 Rxf1 28. Rxf1 Rxf1 29. c7 Rf8) 23. c5 {[%emt 0:05:30]} (23. Qc1 $11) 23... bxc5 {[%emt 0:01:43]} (23... exf4 $6 24. Nxf4 Nxf4 25. c6 $11) (23... dxc5 {feels hotter.} 24. bxc5 bxc5 25. Qxc5 Rc8) 24. bxc5 {[%emt 0:00:08]} dxc5 {[%emt 0:00:51]} (24... exf4 $6 25. Nxf4 Nxf4 26. c6 $11) 25. fxe5 {[%emt 0:02:07]} (25. Qxc5 $17 Rc8 26. Qb4) 25... Rxf1 $19 {[%emt 0:02:02]} ({Weaker is} 25... Bxe5 26. Rxf7 Bxf7 27. Qxc5 $11) 26. Rxf1 {[%emt 0:00:32]} Rxf1 {[%emt 0:00:06]} 27. Bxf1 {[%emt 0:00:06]} Qb5 {[%emt 0:02:32]} ({And not} 27... Bxe5 28. Qxc5 Qd6 29. Bxd4 (29. Qxd6 Bxd6 30. Bxd4+ Kg8 $17) 29... Qxc5 30. Bxc5 $11) 28. Nf4 $2 {[%emt 0:02:33]} (28. Bf2) 28... Nxf4 {[%emt 0:00:55]} 29. gxf4 {[%emt 0:00:04]} a3 {[%emt 0:00:08]} 30. Kg3 {[%emt 0:00:49]} Bf8 {[%emt 0:01:28]} 31. Bg2 {[%emt 0:02:23]} Qb2 {[%emt 0:00:44]} 32. Qa4 {[%emt 0:00:09]} Qxa2 {[%emt 0:00:17] [#] aiming for ...Qb3.} 33. Qe8 {[%emt 0:00:29]} Kg8 {[%emt 0:00:09]} 34. Qd8 {[%emt 0:02:16]} Qb1 {[%emt 0:01:11][%csl LRd3,LRg1]} 35. Kh2 {[%emt 0:01:07]} a2 {[%emt 0:01:32]} (35... Qxd3 $142 36. Qb6 Qf5) 36. Bd5 {[%emt 0:00:31] [#]} Qxg1+ $3 {[%emt 0:00:07][%mdl 512]} 37. Kxg1 {[%emt 0:00:06]} a1=Q+ {[%emt 0:00:04]} 38. Kh2 {[%emt 0:00:07]} Qa6 {[%emt 0:00:49][%mdl 8192]} (38... Bxd5 $19 39. Qxd5+ Kh8) 39. Qf6 {[%emt 0:00:17] Never resign too early!  Weighted Error Value: White=0.73/Black=0.47} 1-0